[Event "Late-Titled-Tuesday-Blitz-September-05-2023"]
[Site "Chess.com"]
[Date "2023.09.05"]
[Round "9"]
[White "SEBAZZANO"]
[Black "maurovargas01"]
[Result "1-0"]
[WhiteElo "2191"]
[BlackElo "1857"]
[TimeControl "180+1"]
[EndTime "15:43:09 PDT"]
[Termination "SEBAZZANO won by checkmate"]

1. d4 {[%clk 0:03:00.3]} 1... d5 {[%clk 0:02:59.6]} 2. Bf4 {[%clk 0:02:59.8]}
2... h5 {[%clk 0:02:58.2]} 3. Nf3 {[%clk 0:02:58.6]} 3... Bf5 {[%clk 0:02:56.2]}
4. e3 {[%clk 0:02:57.2]} 4... Be4 {[%clk 0:02:56.1]} 5. Nbd2 {[%clk 0:02:55.3]}
5... e6 {[%clk 0:02:49.6]} 6. h3 {[%clk 0:02:33.6]} 6... Be7 {[%clk 0:02:48.8]}
7. Nxe4 {[%clk 0:02:32]} 7... dxe4 {[%clk 0:02:49.7]} 8. Nd2 {[%clk 0:02:32.5]}
8... f5 {[%clk 0:02:49]} 9. Be2 {[%clk 0:02:28.3]} 9... Nf6 {[%clk 0:02:48.7]}
10. Bg5 {[%clk 0:02:21.6]} 10... g6 {[%clk 0:02:45.1]} 11. O-O {[%clk
0:02:19.8]} 11... Qd6 {[%clk 0:02:39]} 12. Nc4 {[%clk 0:02:12.8]} 12... Qd5
{[%clk 0:02:30]} 13. Ne5 {[%clk 0:02:12]} 13... Nbd7 {[%clk 0:02:29.2]} 14. c4
{[%clk 0:02:01.3]} 14... Qa5 {[%clk 0:02:22.4]} 15. Nxg6 {[%clk 0:01:51.8]}
15... Rg8 {[%clk 0:02:19.7]} 16. Bxh5 {[%clk 0:01:51.2]} 16... c6 {[%clk
0:02:11.9]} 17. Nf4+ {[%clk 0:01:41.6]} 17... Nxh5 {[%clk 0:02:11.2]} 18. Qxh5+
{[%clk 0:01:39.9]} 18... Kd8 {[%clk 0:02:07.6]} 19. Nxe6+ {[%clk 0:01:36.5]}
19... Kc8 {[%clk 0:02:05.3]} 20. Bxe7 {[%clk 0:01:35.4]} 20... b6 {[%clk
0:01:23.1]} 21. d5 {[%clk 0:01:20.4]} 21... cxd5 {[%clk 0:01:20.9]} 22. Qxf5
{[%clk 0:01:17.1]} 22... Kb7 {[%clk 0:01:15.4]} 23. Rad1 {[%clk 0:01:07.7]}
23... Nc5 {[%clk 0:01:11.5]} 24. Qxd5+ {[%clk 0:01:03.5]} 24... Ka6 {[%clk
0:01:06.1]} 25. Nc7# {[%clk 0:01:02.7]} 1-0

[Event "Late-Titled-Tuesday-Blitz-September-05-2023"]
[Site "Chess.com"]
[Date "2023.09.05"]
[Round "9"]
[White "buenamor1972"]
[Black "cthulhuuu"]
[Result "0-1"]
[WhiteElo "2335"]
[BlackElo "2464"]
[TimeControl "180+1"]
[EndTime "15:43:30 PDT"]
[Termination "cthulhuuu won by checkmate"]

1. Nf3 {[%clk 0:02:58.1]} 1... Nf6 {[%clk 0:02:59.8]} 2. g3 {[%clk 0:02:57.7]}
2... g6 {[%clk 0:03:00]} 3. Bg2 {[%clk 0:02:58.3]} 3... Bg7 {[%clk 0:03:00.7]}
4. O-O {[%clk 0:02:58.1]} 4... O-O {[%clk 0:03:01.1]} 5. d3 {[%clk 0:02:58.7]}
5... d6 {[%clk 0:03:01.5]} 6. e4 {[%clk 0:02:58.5]} 6... c5 {[%clk 0:03:01.8]}
7. Nbd2 {[%clk 0:02:58.7]} 7... Nc6 {[%clk 0:03:02.1]} 8. a4 {[%clk 0:02:59.2]}
8... Rb8 {[%clk 0:03:01.5]} 9. Nc4 {[%clk 0:02:58.8]} 9... b6 {[%clk 0:03:00.3]}
10. e5 {[%clk 0:02:58.8]} 10... dxe5 {[%clk 0:02:58.3]} 11. Nfxe5 {[%clk
0:02:59.4]} 11... Nxe5 {[%clk 0:02:58.7]} 12. Nxe5 {[%clk 0:02:59.9]} 12... Bb7
{[%clk 0:02:59]} 13. Nc6 {[%clk 0:03:00.4]} 13... Bxc6 {[%clk 0:02:57.1]} 14.
Bxc6 {[%clk 0:03:00.9]} 14... Nd5 {[%clk 0:02:56.2]} 15. c3 {[%clk 0:03:01]}
15... e6 {[%clk 0:02:14.4]} 16. Bb5 {[%clk 0:02:48.4]} 16... h5 {[%clk
0:02:14.1]} 17. Qf3 {[%clk 0:02:48.2]} 17... h4 {[%clk 0:02:12.6]} 18. Bc4
{[%clk 0:02:44.5]} 18... hxg3 {[%clk 0:02:03.8]} 19. hxg3 {[%clk 0:02:43.9]}
19... Qd7 {[%clk 0:02:00.8]} 20. Kg2 {[%clk 0:02:39]} 20... Rbd8 {[%clk
0:01:58.9]} 21. Bg5 {[%clk 0:02:37.4]} 21... f6 {[%clk 0:01:19.3]} 22. Bd2
{[%clk 0:02:35.3]} 22... Rfe8 {[%clk 0:01:05.8]} 23. Rfe1 {[%clk 0:02:29]} 23...
Qf7 {[%clk 0:01:05.5]} 24. a5 {[%clk 0:02:17.2]} 24... g5 {[%clk 0:01:03.2]} 25.
axb6 {[%clk 0:02:12.9]} 25... axb6 {[%clk 0:01:03.6]} 26. Ra6 {[%clk 0:02:13.3]}
26... Qb7 {[%clk 0:00:53.7]} 27. Rea1 {[%clk 0:01:57.5]} 27... g4 {[%clk
0:00:48.5]} 28. Qe4 {[%clk 0:01:52.3]} 28... f5 {[%clk 0:00:47.3]} 29. Bxd5
{[%clk 0:01:42.9]} 29... Rxd5 {[%clk 0:00:48.2]} 30. Qe2 {[%clk 0:01:21.1]}
30... Re5+ {[%clk 0:00:46.4]} 31. Kf1 {[%clk 0:01:18.3]} 31... Qh1# {[%clk
0:00:45.6]} 0-1

[Event "Late-Titled-Tuesday-Blitz-September-05-2023"]
[Site "Chess.com"]
[Date "2023.09.05"]
[Round "9"]
[White "sterpfi"]
[Black "Kosak12"]
[Result "0-1"]
[WhiteElo "2173"]
[BlackElo "2785"]
[TimeControl "180+1"]
[EndTime "15:43:33 PDT"]
[Termination "Kosak12 won by resignation"]

1. e4 {[%clk 0:03:00]} 1... c5 {[%clk 0:02:47.3]} 2. Nf3 {[%clk 0:02:59.7]} 2...
d6 {[%clk 0:02:44.1]} 3. Bb5+ {[%clk 0:02:59.5]} 3... Bd7 {[%clk 0:02:43.2]} 4.
Bxd7+ {[%clk 0:02:59.6]} 4... Qxd7 {[%clk 0:02:41.3]} 5. c4 {[%clk 0:02:59.4]}
5... Nf6 {[%clk 0:02:40.3]} 6. Nc3 {[%clk 0:02:59.8]} 6... g6 {[%clk 0:02:40.4]}
7. d4 {[%clk 0:03:00.3]} 7... cxd4 {[%clk 0:02:40.5]} 8. Nxd4 {[%clk 0:03:01.2]}
8... Bg7 {[%clk 0:02:41]} 9. f3 {[%clk 0:03:01.8]} 9... O-O {[%clk 0:02:40.9]}
10. Be3 {[%clk 0:03:01.7]} 10... Nc6 {[%clk 0:02:36.1]} 11. O-O {[%clk 0:03:00]}
11... e6 {[%clk 0:02:36.1]} 12. Qd2 {[%clk 0:02:54.6]} 12... Rac8 {[%clk
0:02:35.2]} 13. b3 {[%clk 0:02:52.6]} 13... Rfd8 {[%clk 0:02:34.9]} 14. Rad1
{[%clk 0:02:50.4]} 14... a6 {[%clk 0:02:28.7]} 15. Kh1 {[%clk 0:02:28.6]} 15...
Nxd4 {[%clk 0:02:20]} 16. Bxd4 {[%clk 0:02:28.5]} 16... b5 {[%clk 0:02:20.1]}
17. cxb5 {[%clk 0:02:15.7]} 17... axb5 {[%clk 0:02:21]} 18. a4 {[%clk
0:02:14.6]} 18... bxa4 {[%clk 0:02:14.2]} 19. bxa4 {[%clk 0:02:14.6]} 19... Rc4
{[%clk 0:02:07.4]} 20. Nb5 {[%clk 0:01:55.6]} 20... Ra8 {[%clk 0:01:59.2]} 21.
Bxf6 {[%clk 0:01:52.9]} 21... Bxf6 {[%clk 0:01:59]} 22. Qxd6 {[%clk 0:01:53.5]}
22... Qxd6 {[%clk 0:01:58.5]} 23. Nxd6 {[%clk 0:01:29.5]} 23... Rcxa4 {[%clk
0:01:57.7]} 24. h3 {[%clk 0:01:25.4]} 24... Be5 {[%clk 0:01:51.9]} 25. f4 {[%clk
0:01:15.3]} 25... Bxd6 {[%clk 0:01:51.5]} 26. Rxd6 {[%clk 0:01:16.2]} 26... Rxe4
{[%clk 0:01:52.1]} 27. Rd2 {[%clk 0:01:11.4]} 27... Raa4 {[%clk 0:01:49.2]} 28.
Rdf2 {[%clk 0:01:11.3]} 28... Kg7 {[%clk 0:01:49.3]} 29. Kh2 {[%clk 0:01:10.5]}
29... Kf6 {[%clk 0:01:47.7]} 30. g4 {[%clk 0:01:10.2]} 30... Re3 {[%clk
0:01:45.7]} 31. Rf3 {[%clk 0:01:09.5]} 31... Ra2+ {[%clk 0:01:45.7]} 32. Kg3
{[%clk 0:01:09.3]} 32... Ree2 {[%clk 0:01:44.5]} 33. f5 {[%clk 0:01:00.8]} 33...
Rg2+ {[%clk 0:01:32.6]} 34. Kh4 {[%clk 0:00:53.5]} 34... exf5 {[%clk 0:01:32.5]}
35. gxf5 {[%clk 0:00:47.1]} 35... Ra4+ {[%clk 0:01:32.3]} 36. Rf4 {[%clk
0:00:46.4]} 36... Rxf4+ {[%clk 0:01:33.2]} 37. Rxf4 {[%clk 0:00:46.7]} 37... g5+
{[%clk 0:01:34.1]} 38. Kh5 {[%clk 0:00:45.6]} 38... gxf4 {[%clk 0:01:35]} 39. h4
{[%clk 0:00:45.3]} 39... Kxf5 {[%clk 0:01:34.8]} 40. Kh6 {[%clk 0:00:45.1]}
40... Rh2 {[%clk 0:01:33.7]} 0-1

[Event "Late-Titled-Tuesday-Blitz-September-05-2023"]
[Site "Chess.com"]
[Date "2023.09.05"]
[Round "9"]
[White "ridnani2021"]
[Black "FairChess_on_YouTube"]
[Result "1/2-1/2"]
[WhiteElo "2608"]
[BlackElo "3019"]
[TimeControl "180+1"]
[EndTime "15:43:35 PDT"]
[Termination "Game drawn by agreement"]

1. e4 {[%clk 0:03:00.9]} 1... a6 {[%clk 0:03:00.9]} 2. d4 {[%clk 0:02:56.8]}
2... c6 {[%clk 0:03:01.8]} 3. Nf3 {[%clk 0:02:54.3]} 3... d5 {[%clk 0:03:02.3]}
4. Nc3 {[%clk 0:02:48.9]} 4... Bg4 {[%clk 0:03:02.2]} 5. h3 {[%clk 0:02:41.4]}
5... Bh5 {[%clk 0:03:00.6]} 6. Be2 {[%clk 0:02:32.1]} 6... e6 {[%clk 0:03:00.7]}
7. O-O {[%clk 0:02:29.6]} 7... Nf6 {[%clk 0:03:01]} 8. e5 {[%clk 0:02:26.5]}
8... Nfd7 {[%clk 0:03:01.1]} 9. Ng5 {[%clk 0:02:17.1]} 9... Bg6 {[%clk
0:03:01.2]} 10. Bh5 {[%clk 0:01:42.7]} 10... Be7 {[%clk 0:03:01.3]} 11. Bxg6
{[%clk 0:01:42.4]} 11... hxg6 {[%clk 0:03:02.2]} 12. Qg4 {[%clk 0:01:41.7]}
12... Bxg5 {[%clk 0:03:01.5]} 13. Bxg5 {[%clk 0:01:39.1]} 13... Qb6 {[%clk
0:03:01.3]} 14. b3 {[%clk 0:01:33.3]} 14... c5 {[%clk 0:02:53.5]} 15. Na4 {[%clk
0:01:29.9]} 15... Qc6 {[%clk 0:02:53.4]} 16. Nxc5 {[%clk 0:01:24.3]} 16... Nxc5
{[%clk 0:02:53.6]} 17. dxc5 {[%clk 0:01:25.2]} 17... Nd7 {[%clk 0:02:53.9]} 18.
c4 {[%clk 0:01:19.2]} 18... dxc4 {[%clk 0:02:46]} 19. Qxc4 {[%clk 0:01:16.9]}
19... Nxe5 {[%clk 0:02:46]} 20. Qc3 {[%clk 0:01:14.1]} 20... f6 {[%clk
0:02:44.1]} 21. Bf4 {[%clk 0:01:11.9]} 21... Nf7 {[%clk 0:02:42.3]} 22. Qd3
{[%clk 0:01:09.2]} 22... g5 {[%clk 0:02:38.5]} 23. Bd6 {[%clk 0:01:08.8]} 23...
O-O-O {[%clk 0:02:28.1]} 24. Rac1 {[%clk 0:01:01.8]} 24... g4 {[%clk 0:02:28.1]}
25. hxg4 {[%clk 0:00:56.7]} 25... Rh4 {[%clk 0:02:27.9]} 26. Qf3 {[%clk
0:00:49.3]} 26... Rdh8 {[%clk 0:02:13.6]} 27. Qxc6+ {[%clk 0:00:41.1]} 27...
bxc6 {[%clk 0:02:14.5]} 28. f3 {[%clk 0:00:41.7]} 28... e5 {[%clk 0:02:14.8]}
29. Kf2 {[%clk 0:00:36.5]} 29... Kd7 {[%clk 0:02:15.1]} 30. Rfd1 {[%clk
0:00:34]} 30... Ke6 {[%clk 0:02:15.4]} 31. Bc7 {[%clk 0:00:31.6]} 31... Rh2
{[%clk 0:02:14.1]} 32. Kg3 {[%clk 0:00:26.2]} 32... e4 {[%clk 0:02:11.6]} 33.
Re1 {[%clk 0:00:21.8]} 33... Kd7 {[%clk 0:02:07.8]} 34. Bd6 {[%clk 0:00:21.7]}
34... Nxd6 {[%clk 0:01:51.9]} 35. Rcd1 {[%clk 0:00:21.8]} 35... exf3 {[%clk
0:01:48.7]} 36. Rxd6+ {[%clk 0:00:20.7]} 36... Kc8 {[%clk 0:01:49.3]} 37. Kxf3
{[%clk 0:00:20.7]} 1/2-1/2

[Event "Late-Titled-Tuesday-Blitz-September-05-2023"]
[Site "Chess.com"]
[Date "2023.09.05"]
[Round "9"]
[White "olakenn"]
[Black "Quattroporte300"]
[Result "0-1"]
[WhiteElo "1880"]
[BlackElo "2389"]
[TimeControl "180+1"]
[EndTime "15:43:41 PDT"]
[Termination "Quattroporte300 won by resignation"]

1. e4 {[%clk 0:03:00.9]} 1... c5 {[%clk 0:02:57.4]} 2. Nc3 {[%clk 0:03:00.8]}
2... a6 {[%clk 0:02:56.7]} 3. g3 {[%clk 0:03:00.6]} 3... b5 {[%clk 0:02:56.3]}
4. Bg2 {[%clk 0:03:00]} 4... Bb7 {[%clk 0:02:56.7]} 5. d3 {[%clk 0:02:57]} 5...
g6 {[%clk 0:02:56.4]} 6. Nge2 {[%clk 0:02:56.9]} 6... Bg7 {[%clk 0:02:56.9]} 7.
Rb1 {[%clk 0:02:46.6]} 7... d6 {[%clk 0:02:55.5]} 8. Be3 {[%clk 0:02:45.9]} 8...
e6 {[%clk 0:02:55.3]} 9. Qd2 {[%clk 0:02:44.7]} 9... Ne7 {[%clk 0:02:55.4]} 10.
Bh6 {[%clk 0:02:43.6]} 10... O-O {[%clk 0:02:55.4]} 11. h4 {[%clk 0:02:43.3]}
11... b4 {[%clk 0:02:45.8]} 12. Nd1 {[%clk 0:02:40.4]} 12... Bxh6 {[%clk
0:02:34.1]} 13. Qxh6 {[%clk 0:02:39.5]} 13... Nf5 {[%clk 0:02:34.7]} 14. Qd2
{[%clk 0:02:14.7]} 14... Ng7 {[%clk 0:02:33.8]} 15. Ne3 {[%clk 0:02:05.9]} 15...
h5 {[%clk 0:02:33.2]} 16. g4 {[%clk 0:01:58.9]} 16... Nd7 {[%clk 0:02:27.1]} 17.
Nf4 {[%clk 0:01:38.5]} 17... Qf6 {[%clk 0:02:21.7]} 18. Nc4 {[%clk 0:01:30.9]}
18... e5 {[%clk 0:02:19.3]} 19. Nd5 {[%clk 0:01:07.6]} 19... Bxd5 {[%clk
0:02:18.4]} 20. exd5 {[%clk 0:01:07.8]} 20... hxg4 {[%clk 0:02:10]} 21. Qg5
{[%clk 0:00:54.3]} 21... Nf5 {[%clk 0:02:01.6]} 22. Qxf6 {[%clk 0:00:49.4]}
22... Nxf6 {[%clk 0:02:00.9]} 23. Be4 {[%clk 0:00:44.5]} 23... Rad8 {[%clk
0:01:58.4]} 24. Bxf5 {[%clk 0:00:42.4]} 24... gxf5 {[%clk 0:01:58.3]} 25. h5
{[%clk 0:00:39]} 25... Kh7 {[%clk 0:01:58.1]} 26. Ke2 {[%clk 0:00:33.9]} 26...
f4 {[%clk 0:01:57.2]} 27. Rbg1 {[%clk 0:00:26.4]} 27... Rg8 {[%clk 0:01:56.5]}
28. c3 {[%clk 0:00:17.2]} 28... Nxd5 {[%clk 0:01:56]} 29. cxb4 {[%clk
0:00:17.2]} 29... Nxb4 {[%clk 0:01:55.7]} 30. a3 {[%clk 0:00:16.1]} 30... Nc6
{[%clk 0:01:54.9]} 31. Rh4 {[%clk 0:00:10.6]} 31... f5 {[%clk 0:01:54.7]} 32. h6
{[%clk 0:00:10.2]} 32... d5 {[%clk 0:01:53.2]} 33. Nd2 {[%clk 0:00:09.5]} 33...
Nd4+ {[%clk 0:01:53.4]} 34. Kd1 {[%clk 0:00:08.1]} 34... Rb8 {[%clk 0:01:53.2]}
35. Kc1 {[%clk 0:00:06.9]} 35... Ne2+ {[%clk 0:01:52.2]} 0-1

[Event "Late-Titled-Tuesday-Blitz-September-05-2023"]
[Site "Chess.com"]
[Date "2023.09.05"]
[Round "9"]
[White "PNEPaul"]
[Black "talaicito"]
[Result "0-1"]
[WhiteElo "1906"]
[BlackElo "2262"]
[TimeControl "180+1"]
[EndTime "15:43:59 PDT"]
[Termination "talaicito won by resignation"]

1. e4 {[%clk 0:03:00.9]} 1... b6 {[%clk 0:02:58.6]} 2. d4 {[%clk 0:03:00.3]}
2... Bb7 {[%clk 0:02:59.5]} 3. Nc3 {[%clk 0:03:00.4]} 3... g6 {[%clk 0:02:59.6]}
4. Bd3 {[%clk 0:03:00.1]} 4... Bg7 {[%clk 0:02:59.8]} 5. Nge2 {[%clk 0:03:00.2]}
5... e6 {[%clk 0:02:59.9]} 6. O-O {[%clk 0:03:00]} 6... Ne7 {[%clk 0:03:00.5]}
7. Kh1 {[%clk 0:02:55]} 7... d6 {[%clk 0:02:59.9]} 8. Be3 {[%clk 0:02:47.9]}
8... Nd7 {[%clk 0:02:59.8]} 9. Qd2 {[%clk 0:02:48]} 9... h6 {[%clk 0:02:59.5]}
10. f4 {[%clk 0:02:46.1]} 10... a6 {[%clk 0:02:56.1]} 11. Rad1 {[%clk
0:02:45.9]} 11... Nf6 {[%clk 0:02:48.6]} 12. h3 {[%clk 0:02:38.1]} 12... d5
{[%clk 0:02:28.8]} 13. e5 {[%clk 0:02:14.2]} 13... Nd7 {[%clk 0:02:28.3]} 14.
Ng3 {[%clk 0:02:06.7]} 14... c5 {[%clk 0:02:24.2]} 15. f5 {[%clk 0:02:04.5]}
15... gxf5 {[%clk 0:02:19.9]} 16. Nxf5 {[%clk 0:01:42.3]} 16... Nxf5 {[%clk
0:02:08.4]} 17. Bxf5 {[%clk 0:01:40.5]} 17... exf5 {[%clk 0:02:08.5]} 18. Rxf5
{[%clk 0:01:40.3]} 18... Qe7 {[%clk 0:01:45.9]} 19. Rdf1 {[%clk 0:01:36.9]}
19... Rf8 {[%clk 0:01:41.6]} 20. Bxh6 {[%clk 0:01:13]} 20... Bxh6 {[%clk
0:01:41.3]} 21. Qxh6 {[%clk 0:01:12.7]} 21... O-O-O {[%clk 0:01:38.6]} 22. Qf4
{[%clk 0:00:57.1]} 22... cxd4 {[%clk 0:01:30]} 23. Qxd4 {[%clk 0:00:53.2]} 23...
Nc5 {[%clk 0:01:21.6]} 24. b4 {[%clk 0:00:45.9]} 24... Ne6 {[%clk 0:01:14.9]}
25. Qxb6 {[%clk 0:00:35]} 25... d4 {[%clk 0:01:15.1]} 26. Na4 {[%clk 0:00:25.7]}
26... Qh4 {[%clk 0:01:08.8]} 0-1

[Event "Late-Titled-Tuesday-Blitz-September-05-2023"]
[Site "Chess.com"]
[Date "2023.09.05"]
[Round "9"]
[White "Bigfish1995"]
[Black "Parhamov"]
[Result "1-0"]
[WhiteElo "3081"]
[BlackElo "2976"]
[TimeControl "180+1"]
[EndTime "15:44:01 PDT"]
[Termination "Bigfish1995 won on time"]

1. a3 {[%clk 0:03:00.9]} 1... h5 {[%clk 0:02:11.3]} 2. h4 {[%clk 0:02:59.2]}
2... a5 {[%clk 0:02:09.6]} 3. a4 {[%clk 0:02:54.7]} 3... Na6 {[%clk 0:02:08.4]}
4. d4 {[%clk 0:02:49.9]} 4... d5 {[%clk 0:02:05.8]} 5. Bf4 {[%clk 0:02:49.8]}
5... Bf5 {[%clk 0:02:04.2]} 6. e3 {[%clk 0:02:49.8]} 6... e6 {[%clk 0:02:00.8]}
7. c3 {[%clk 0:02:46.2]} 7... Bd6 {[%clk 0:01:50.9]} 8. Ne2 {[%clk 0:02:44.6]}
8... Nf6 {[%clk 0:01:46.7]} 9. Nd2 {[%clk 0:02:42.6]} 9... c5 {[%clk 0:01:26.8]}
10. Bg5 {[%clk 0:02:12.4]} 10... Qb6 {[%clk 0:01:20]} 11. Qb3 {[%clk 0:02:11.6]}
11... Qxb3 {[%clk 0:01:17.9]} 12. Nxb3 {[%clk 0:02:12.5]} 12... b6 {[%clk
0:01:18.1]} 13. f3 {[%clk 0:02:06.8]} 13... Nd7 {[%clk 0:01:13.5]} 14. Bf4
{[%clk 0:02:02.9]} 14... Bxf4 {[%clk 0:01:13.2]} 15. Nxf4 {[%clk 0:02:03.8]}
15... Nc7 {[%clk 0:01:13.6]} 16. O-O-O {[%clk 0:02:00]} 16... Ke7 {[%clk
0:01:04.7]} 17. Re1 {[%clk 0:01:56.1]} 17... e5 {[%clk 0:00:55.9]} 18. dxe5
{[%clk 0:01:46.1]} 18... Nxe5 {[%clk 0:00:55.8]} 19. Nxd5+ {[%clk 0:01:45.5]}
19... Nxd5 {[%clk 0:00:55.8]} 20. e4 {[%clk 0:01:46.2]} 20... Bd7 {[%clk
0:00:12.6]} 21. exd5 {[%clk 0:01:44.6]} 21... Kf6 {[%clk 0:00:13.2]} 22. Nd2
{[%clk 0:01:43.1]} 22... Bxa4 {[%clk 0:00:12.9]} 23. Ne4+ {[%clk 0:01:42.9]}
23... Kg6 {[%clk 0:00:12.3]} 24. Nxc5 {[%clk 0:01:38.9]} 24... bxc5 {[%clk
0:00:12.4]} 25. Rxe5 {[%clk 0:01:38.1]} 25... Bd7 {[%clk 0:00:08]} 26. Bd3+
{[%clk 0:01:37.1]} 26... Kf6 {[%clk 0:00:08.4]} 27. Rhe1 {[%clk 0:01:36.4]}
27... a4 {[%clk 0:00:08.5]} 28. d6 {[%clk 0:01:28.7]} 28... Be6 {[%clk
0:00:02.4]} 29. Rxc5 {[%clk 0:01:27.7]} 1-0

[Event "Late-Titled-Tuesday-Blitz-September-05-2023"]
[Site "Chess.com"]
[Date "2023.09.05"]
[Round "9"]
[White "ural58"]
[Black "korason34"]
[Result "1-0"]
[WhiteElo "2554"]
[BlackElo "2669"]
[TimeControl "180+1"]
[EndTime "15:44:17 PDT"]
[Termination "ural58 won by resignation"]

1. e4 {[%clk 0:03:00.9]} 1... c6 {[%clk 0:02:58.7]} 2. Nc3 {[%clk 0:03:00.1]}
2... d5 {[%clk 0:02:59.6]} 3. Nf3 {[%clk 0:03:00.1]} 3... Bg4 {[%clk 0:02:55.4]}
4. h3 {[%clk 0:02:59.8]} 4... Bxf3 {[%clk 0:02:55.6]} 5. Qxf3 {[%clk 0:03:00]}
5... e6 {[%clk 0:02:56.5]} 6. Be2 {[%clk 0:02:58.7]} 6... Nf6 {[%clk 0:02:54.9]}
7. e5 {[%clk 0:02:57.7]} 7... Nfd7 {[%clk 0:02:54.8]} 8. Qg3 {[%clk 0:02:57.7]}
8... c5 {[%clk 0:02:53.6]} 9. f4 {[%clk 0:02:49.5]} 9... Nc6 {[%clk 0:02:50.6]}
10. O-O {[%clk 0:02:48.6]} 10... g6 {[%clk 0:02:49.5]} 11. b3 {[%clk 0:02:17.9]}
11... Bg7 {[%clk 0:02:40.3]} 12. Bb2 {[%clk 0:02:16.8]} 12... O-O {[%clk
0:02:39.1]} 13. Nb5 {[%clk 0:02:13.7]} 13... a6 {[%clk 0:02:33.3]} 14. Nd6
{[%clk 0:02:13.8]} 14... f6 {[%clk 0:02:33.6]} 15. Nxb7 {[%clk 0:01:53.7]} 15...
Qc7 {[%clk 0:02:28.8]} 16. f5 {[%clk 0:01:43.4]} 16... Qxb7 {[%clk 0:02:18.8]}
17. exf6 {[%clk 0:01:32.6]} 17... Nxf6 {[%clk 0:02:17.4]} 18. fxg6 {[%clk
0:01:20.7]} 18... hxg6 {[%clk 0:02:16.8]} 19. Qxg6 {[%clk 0:01:18.8]} 19... Nd4
{[%clk 0:01:51.5]} 20. Bxd4 {[%clk 0:01:16.8]} 20... cxd4 {[%clk 0:01:52.4]} 21.
Bd3 {[%clk 0:01:16.9]} 21... Rae8 {[%clk 0:01:44.5]} 22. Rae1 {[%clk 0:01:08]}
22... Qf7 {[%clk 0:01:27.4]} 23. Rxf6 {[%clk 0:01:03.5]} 23... Qxf6 {[%clk
0:01:26]} 24. Qh7+ {[%clk 0:01:03.7]} 24... Kf7 {[%clk 0:01:23.2]} 25. Rf1
{[%clk 0:01:03.8]} 25... Rh8 {[%clk 0:01:12.4]} 26. Rxf6+ {[%clk 0:00:49.6]}
26... Kxf6 {[%clk 0:01:07.2]} 27. Qg6+ {[%clk 0:00:49.7]} 27... Ke5 {[%clk
0:01:06.6]} 28. Qxg7+ {[%clk 0:00:49.8]} 28... Kd6 {[%clk 0:01:07.5]} 29. Qxd4
{[%clk 0:00:48.7]} 29... e5 {[%clk 0:01:07.1]} 30. Qb6+ {[%clk 0:00:48.4]} 30...
Kd7 {[%clk 0:01:07.4]} 31. Bxa6 {[%clk 0:00:48]} 31... Re6 {[%clk 0:01:06.5]}
32. Qb7+ {[%clk 0:00:44.1]} 32... Kd6 {[%clk 0:01:06.9]} 33. c4 {[%clk
0:00:37.5]} 33... dxc4 {[%clk 0:01:06.4]} 34. Bxc4 {[%clk 0:00:37.6]} 34... Rf6
{[%clk 0:01:06]} 35. Qb6+ {[%clk 0:00:35.3]} 35... Ke7 {[%clk 0:01:04.5]} 36.
Qc7+ {[%clk 0:00:35.4]} 36... Kf8 {[%clk 0:01:04]} 37. Qd8+ {[%clk 0:00:34.4]}
37... Kg7 {[%clk 0:01:03.1]} 38. Qe7+ {[%clk 0:00:34.5]} 38... Kg6 {[%clk
0:01:03.6]} 39. Bd3+ {[%clk 0:00:30.3]} 1-0

[Event "Late-Titled-Tuesday-Blitz-September-05-2023"]
[Site "Chess.com"]
[Date "2023.09.05"]
[Round "9"]
[White "Alexei_Gubajdullin"]
[Black "Too_Stupid_To_Play"]
[Result "1-0"]
[WhiteElo "2583"]
[BlackElo "2282"]
[TimeControl "180+1"]
[EndTime "15:44:21 PDT"]
[Termination "Alexei_Gubajdullin won on time"]

1. d4 {[%clk 0:03:00]} 1... b6 {[%clk 0:03:00.9]} 2. Nf3 {[%clk 0:02:59.4]} 2...
Bb7 {[%clk 0:03:01.8]} 3. Bf4 {[%clk 0:02:59.6]} 3... e6 {[%clk 0:03:02.1]} 4.
e3 {[%clk 0:03:00]} 4... f5 {[%clk 0:03:00]} 5. Be2 {[%clk 0:02:59.5]} 5... Nf6
{[%clk 0:03:00.9]} 6. O-O {[%clk 0:02:59.4]} 6... Be7 {[%clk 0:03:01.8]} 7. c4
{[%clk 0:02:54]} 7... O-O {[%clk 0:02:57.2]} 8. Nc3 {[%clk 0:02:53.2]} 8... Nh5
{[%clk 0:02:47.7]} 9. d5 {[%clk 0:02:51.3]} 9... Nxf4 {[%clk 0:02:34]} 10. exf4
{[%clk 0:02:51.1]} 10... Bf6 {[%clk 0:02:34.9]} 11. dxe6 {[%clk 0:02:46.7]}
11... dxe6 {[%clk 0:02:34.4]} 12. Ne5 {[%clk 0:02:40.9]} 12... Bxe5 {[%clk
0:01:59]} 13. fxe5 {[%clk 0:02:40.6]} 13... Qh4 {[%clk 0:01:59.9]} 14. Bf3
{[%clk 0:02:38.4]} 14... Nc6 {[%clk 0:01:56.1]} 15. Qd7 {[%clk 0:02:27.1]} 15...
Rf7 {[%clk 0:01:35.1]} 16. Qxe6 {[%clk 0:02:13.8]} 16... Nd4 {[%clk 0:01:20.5]}
17. Qxf7+ {[%clk 0:02:13.6]} 17... Kxf7 {[%clk 0:01:21.4]} 18. Bxb7 {[%clk
0:02:13.8]} 18... Re8 {[%clk 0:01:11.6]} 19. Bd5+ {[%clk 0:02:06.2]} 19... Kf8
{[%clk 0:01:11.9]} 20. f4 {[%clk 0:02:04.4]} 20... c6 {[%clk 0:00:57.4]} 21.
Rad1 {[%clk 0:02:03.2]} 21... cxd5 {[%clk 0:00:44.4]} 22. Rxd4 {[%clk
0:02:02.6]} 22... dxc4 {[%clk 0:00:44.3]} 23. Rxc4 {[%clk 0:02:01.8]} 23... Rd8
{[%clk 0:00:42.3]} 24. Rf2 {[%clk 0:01:48.8]} 24... Qh5 {[%clk 0:00:29.5]} 25.
Rc7 {[%clk 0:01:41.1]} 25... a6 {[%clk 0:00:20.2]} 26. e6 {[%clk 0:01:35.3]}
26... Rd6 {[%clk 0:00:13]} 27. e7+ {[%clk 0:01:29.5]} 27... Ke8 {[%clk
0:00:12.8]} 28. Re2 {[%clk 0:01:28.8]} 28... Rd1+ {[%clk 0:00:04.7]} 29. Kf2
{[%clk 0:01:26.1]} 29... Qh4+ {[%clk 0:00:03]} 30. Ke3 {[%clk 0:01:14.4]} 30...
Rd7 {[%clk 0:00:03.2]} 31. Rxd7 {[%clk 0:01:13.2]} 31... Kxd7 {[%clk 0:00:03.1]}
32. Kd3 {[%clk 0:01:09.5]} 32... Ke8 {[%clk 0:00:01.6]} 33. Nd5 {[%clk 0:01:09]}
1-0